Cogmind - Beta 17 @@@ ROGUE MODE // 2026.07.06 @ 19:43:09 Player: mmmmcheese Result: Destroyed by Y-72 Warden with Railgun Performance ------------- Evolutions (8) 4000 Regions Visited (16) 3200 Robots Destroyed (87) 435 Value Destroyed (4159) 4159 Prototype IDs (39) 780 Alien Tech Used (3) 600 Bonus (2531) 2531 TOTAL SCORE: 15705 Bonus ------- Follower Combat Kills 731 Registered with UFD 300 Met Optimus in HQ 500 Met Optimus at Protoforge 1000 Cogmind --------- Core Integrity 0/1450 Matter 300/300 Energy 99/100 System Corruption 11% Temperature Cool (0) Movement Core (50) Location -2/Protoforge Parts ------- > --- POWER (2) -------- (None) > --- PROPULSION (8) --- (None) > --- UTILITY (11) ----- (None) > --- WEAPON (2) ------- (None) > --- INVENTORY (5) ---- Improved Thunder Leg Overtuned Huge Scrapsphere Enhanced Hardcell Cannon Enhanced Hardcell Cannon Peak State ------------ > --- POWER ------------ Improved Quantum Reactor Improved Quantum Reactor > --- PROPULSION ------- Experimental VSS Leg Field Propulsion Array Field Propulsion Array Q-thruster Impulse Thruster Array > --- UTILITY ---------- Experimental Cooling System Advanced Weight Redist. System Enhanced Optical Array Experimental Optical Array Experimental Signal Interpreter Advanced Terrain Scan Processor Experimental Target Analyzer Experimental Armor Integrity Analyzer Experimental Kinecellerator Advanced Transmission Jammer Advanced ECM Suite > --- WEAPON ----------- Concept XC Strikerail Kinetic Spear > --- INVENTORY -------- Advanced Datajack [Rating: 178] Favorites ----------- Power Heavy Ion Engine Engine Heavy Ion Engine Power Core Light Nuclear Core Reactor Vortex Chain Reactor Propulsion Light Treads Treads Light Treads Leg Thunder Leg Wheel Wheel Flight Unit Field Propulsion Array Utility Hacking Suite Device Advanced Weight Redist. System Storage Large Storage Unit Processor Enhanced Optical Array Hackware Hacking Suite Protection Light Armor Plating Artifact Phase Redirector Weapon Improved Assault Rifle Energy Gun Medium Laser Ballistic Gun Improved Assault Rifle Ballistic Cannon Enhanced Hardcell Cannon Launcher EMP Blaster Impact Weapon Core Stripper Slashing Weapon Ionic Axe Piercing Weapon Lance Special Melee Weapon Advanced Datajack Build | -11 -10 -10 -9 -9 -9 -9 -6 -5 -5 -5 -4 -4 -3 -2 -2 -2 ------- Run | Yrd Mat Min Mat Sto Rec Scr Fac Fac Was Fac Fac Ext Res Res Qua Frg Slots Evolved 16 | . . . 2 . . . 6 2 . . 2 . 2 2 . . Power 1 | . . . . . . . 1 . . . . . . . . . Propulsion 6 | . . . 1 . . . 1 2 . . . . . 2 . . Utility 9 | . . . 1 . . . 4 . . . 2 . 2 . . . Weapon . | . . . . . . . . . . . . . . . . . Parts Attached 194 | 5 10 5 2 24 3 6 26 7 1 15 5 8 20 7 2 48 Power 27 | 1 1 1 1 3 . . 4 1 . 2 . 2 3 1 . 7 Engine 5 | 1 . . . 1 . . 2 . . 1 . . . . . . Core 10 | . 1 1 1 2 . . 2 1 . 1 . 1 . . . . Reactor 12 | . . . . . . . . . . . . 1 3 1 . 7 Propulsion 62 | 2 2 2 1 8 2 5 7 5 . 3 2 2 2 1 . 18 Treads 17 | 2 . . . 5 1 5 2 . . . . . . . . 2 Leg 23 | . . . . 3 . . 2 4 . . . . . . . 14 Wheel 5 | . 2 2 1 . . . . . . . . . . . . . Hover . | . . . . . . . . . . . . . . . . . Flight 17 | . . . . . 1 . 3 1 . 3 2 2 2 1 . 2 Utility 71 | . 4 . . 5 . 1 11 1 1 7 3 2 14 4 1 17 Device 43 | . 2 . . 1 . . 8 . . 6 3 1 12 4 . 6 Storage 2 | . 1 . . . . 1 . . . . . . . . . . Processor 11 | . . . . . . . 1 1 1 1 . . 2 . . 5 Hackware 2 | . . . . 1 . . 1 . . . . . . . . . Protection 12 | . 1 . . 3 . . 1 . . . . 1 . . . 6 Artifact 1 | . . . . . . . . . . . . . . . 1 . Weapon 34 | 2 3 2 . 8 1 . 4 . . 3 . 2 1 1 1 6 Energy Gun 10 | 2 2 . . 2 . . 3 . . . . . . . . 1 Energy Cannon . | . . . . . . . . . . . . . . . . . Ballistic Gun 12 | . 1 2 . 5 1 . 1 . . 1 . . . . . 1 Ballistic Cannon 2 | . . . . . . . . . . . . . . . . 2 Launcher 1 | . . . . 1 . . . . . . . . . . . . Special Weapon . | . . . . . . . . . . . . . . . . . Impact Weapon 1 | . . . . . . . . . . . . . . . 1 . Slashing Weapon 2 | . . . . . . . . . . 2 . . . . . . Piercing Weapon 4 | . . . . . . . . . . . . . 1 1 . 2 Special Melee Weapon 2 | . . . . . . . . . . . . 2 . . . . Unidentified Prototypes 32 | . . . . 2 1 . 3 1 1 2 . . 1 3 3 15 Parts Lost 76 | . 3 2 . 9 . . 21 . . 8 1 7 2 . . 23 Power 13 | . 1 1 . 1 . . 4 . . . . 2 . . . 4 Propulsion 24 | . 1 1 . 2 . . 5 . . 6 . 2 . . . 7 Utility 24 | . . . . 1 . . 8 . . 2 1 2 1 . . 9 Weapon 15 | . 1 . . 5 . . 4 . . . . 1 1 . . 3 Highest Loss Streak 8 | . 2 1 . 4 . . 6 . . 6 1 3 1 . . 8 To Critical Strikes 1 | . . . . . . . . . . . . . . . . 1 Average Backups 7 | 2 5 11 9 5 14 14 11 2 3 3 2 3 3 3 3 2 Power . | . . . . 1 2 1 . . . . . . . 1 . . Propulsion 1 | 1 2 4 3 . 2 1 1 . . . 1 2 2 1 2 1 Utility 1 | . . 2 2 1 2 2 1 1 2 1 1 . . . . . Weapon 3 | . 2 5 4 1 8 8 6 . . . . 1 . . . 1 Tool/Special . | . . . . . . . . . . . . . . . . . Unused Backups 25 | . 1 . . 3 . 1 7 . . 2 . . 3 3 2 3 Power 2 | . . . . . . . . . . . . . . 1 1 . Propulsion 6 | . . . . 3 . . . . . . . . . . 1 2 Utility 4 | . 1 . . . . 1 1 . . 1 . . . . . . Weapon 12 | . . . . . . . 6 . . . . . 3 2 . 1 Tool/Special 1 | . . . . . . . . . . 1 . . . . . . Average Slot Usage (%) 87 | . 95 98 88 95 100 100 84 53 52 61 80 79 80 78 77 74 Engine 4 | . 9 . . . 11 11 5 . . 2 5 2 . . . . Core 3 | . 2 12 11 10 . . 3 1 . 1 5 3 1 . . . Reactor 1 | . . . . . . . . . . . . . 5 4 4 5 Treads 15 | . 19 . . 26 32 33 19 . . . . . . . . 3 Leg 2 | . . . . 4 . . . 20 23 9 . . . . . 9 Wheel 3 | . 8 28 33 2 . . . . . . . . . . . . Flight 5 | . . . . . . . 1 9 11 12 19 17 14 17 17 8 Device 11 | . 13 14 11 4 . . 8 1 . 10 22 28 30 30 33 12 Storage 5 | . 3 14 11 11 11 11 5 . . . . . . . . . Processor 5 | . . . . . . . 5 5 5 12 14 10 13 13 13 19 Hackware 5 | . . . . 9 11 11 12 11 11 7 5 2 . . . . Protection 6 | . 9 . . 6 11 11 5 . . . . 2 3 3 . 6 Energy Gun 3 | . 19 3 . 4 . . 1 . . . . . . . . . Ballistic Gun 10 | . 8 24 22 12 21 22 10 . . . . . . . . . Peak Build Rating 178 | 5 14 14 15 18 20 33 61 60 56 72 111 109 141 162 175 178 Average Rating 56 | 3 9 13 14 15 19 23 46 45 48 57 94 102 125 155 164 142 On Entrance 57 | . 5 14 14 15 18 19 33 29 47 56 68 106 102 133 162 163 Avg Prop Armor Cover (%) 24 | . 17 . . . . . 8 37 39 35 . 7 . . . 11 Naked Turns 45 | . . . . . . . . . . . . . . . . 45 Heaviest Build 66 | 9 32 32 32 38 37 37 48 9 . 25 37 43 50 60 66 66 Greatest Support 210 | 40 40 26 30 60 60 90 120 69 12 29 49 50 56 71 71 210 Greatest Overweight (x) 7 | . 1 1 1 3 . . 1 . . . . 7 . . . 2 Average Overweight (x) . | . . 1 1 . . . . . . . . . . . . . Largest Inventory Capacity 15 | 5 15 15 15 15 15 15 15 5 5 5 5 5 5 5 5 5 Average Capacity 10 | 5 7 15 15 15 15 15 14 5 5 5 5 5 5 5 5 5 Most Carried 15 | 3 10 13 10 14 14 15 15 5 5 5 5 5 5 5 5 5 Average Carried 8 | 2 5 12 9 5 14 14 13 3 4 4 3 4 4 4 4 3 Final Capacity 15 | 5 15 15 15 15 15 15 5 5 5 5 5 5 5 5 5 5 Final Carried 15 | 3 10 11 9 14 14 15 3 4 5 3 5 5 5 5 5 5 Scrap Suit Usage (%) 1 | . . . . . . . . . . . . . . . . 1 Parts Cannibalized 1 | . . . . . . . . . . . . . . . . 1 Class Distribution -------------------- 38% | Scavenger-Mutant 23% | Mutant 17% | Infiltrator-Ninja 11% | Hacker-Mutant Dominant Class ---------------- Mutant | -10/Materials Mutant | -10/Mines Mutant | -9/Materials Scavenger-Mutant | -9/Storage Scavenger-Mutant | -9/Recycling Scavenger-Mutant | -9/Scraptown Hacker-Mutant | -6/Factory Hacker-Mutant | -5/Factory Hacker-Mutant | -5/Waste Mutant | -5/Factory Infiltrator-Ninja | -4/Factory Infiltrator-Assassin | -4/Extension Infiltrator-Ninja | -3/Research Infiltrator-Ninja | -2/Research Infiltrator-Ninja | -2/Quarantine Scavenger-Mutant | -2/Protoforge Resources | -11 -10 -10 -9 -9 -9 -9 -6 -5 -5 -5 -4 -4 -3 -2 -2 -2 ----------- Run | Yrd Mat Min Mat Sto Rec Scr Fac Fac Was Fac Fac Ext Res Res Qua Frg Matter Collected 3598 | 206 169 325 52 527 54 60 418 . . 341 43 114 . 16 116 1157 Remotely . | . . . . . . . . . . . . . . . . . Salvage Created 3867 | . 562 313 . 735 . . 933 . . 103 63 220 . 76 116 746 Parts 188 | . 22 20 . 39 . . 47 . . 9 6 9 . 9 5 22 Haulers Intercepted . | . . . . . . . . . . . . . . . . . Recyclers Shooed 4 | . . . . . . . 3 . . . . . . . 1 . Parts Field Recycled . | . . . . . . . . . . . . . . . . . Retrieved Matter . | . . . . . . . . . . . . . . . . . Parts Self-Destructed . | . . . . . . . . . . . . . . . . . Prevented . | . . . . . . . . . . . . . . . . . Parts Restored . | . . . . . . . . . . . . . . . . . Kills | -11 -10 -10 -9 -9 -9 -9 -6 -5 -5 -5 -4 -4 -3 -2 -2 -2 ------- Run | Yrd Mat Min Mat Sto Rec Scr Fac Fac Was Fac Fac Ext Res Res Qua Frg Combat Hostiles Destroyed 78 | . 12 10 . 16 . . 19 . . 4 2 3 . 1 . 11 Melee 10 | . . . . 2 . . 2 . . . 2 3 . 1 . . Guns 55 | . 10 10 . 13 . . 15 . . 4 . . . . . 3 Cannons 6 | . . . . . . . . . . . . . . . . 6 AOE 3 | . . . . 1 . . 2 . . . . . . . . . Classes Destroyed 15 | . 3 1 . 1 . . 3 . . . . . . 1 1 5 Worker 2 | . 1 . . . . . . . . . . . . . 1 . Tunneler 1 | . . . . . . . . . . . . . . 1 . . Recycler 1 | . . . . . . . . . . . . . . . 1 . Operator 3 | . 1 . . 1 . . . . . . 1 . . . . . Drone 1 | . . . . . . . . . . . . . . . . 1 Watcher 1 | . . . . . . . . . . . . . . . . 1 Swarmer 13 | . . 4 . . . . 3 . . 4 2 . . . . . Grunt 46 | . 12 6 . 13 . . 9 . . . . 2 . . . 4 Brawler 1 | . . . . . . . 1 . . . . . . . . . Sentry 7 | . . . . 4 . . 2 . . . . 1 . . . . Hunter 3 | . . . . . . . 3 . . . . . . . . . Programmer 4 | . . . . . . . 1 . . . . . . 1 . 2 Striker 1 | . . . . . . . . . . . . . . . . 1 Executioner 1 | . . . . . . . . . . . . . . . . 1 Alpha 7 2 | . . . . . . . . . . . . . . . . 2 Best Kill Streak 6 | . 2 2 . 6 . . 4 . . 4 2 2 . 1 1 3 Combat Bots Only 6 | . 2 2 . 6 . . 4 . . 4 1 2 . 1 . 3 Max Kills in Single Turn 2 | . 1 1 . 1 . . 2 . . 1 1 1 . 1 1 1 Gunslinging . | . . . . . . . . . . . . . . . . . Exploded 1 | . . . . 1 . . 1 . . . . . . . . . Melee 1 | . . . . 1 . . 1 . . . 1 1 . 1 . . Uniques/NPCs Destroyed . | . . . . . . . . . . . . . . . . . Combat | -11 -10 -10 -9 -9 -9 -9 -6 -5 -5 -5 -4 -4 -3 -2 -2 -2 -------- Run | Yrd Mat Min Mat Sto Rec Scr Fac Fac Was Fac Fac Ext Res Res Qua Frg Hostile Shots Fired 1271 | . 70 46 17 165 . . 333 . . 101 41 63 11 38 58 328 Missed 446 | . 16 11 4 43 . . 104 . . 30 29 21 3 29 47 109 Hits 825 | . 54 35 13 122 . . 229 . . 71 12 42 8 9 11 219 Melee 11 | . . . . . . . 6 . . . 1 . 2 . . 2 Projectile 814 | . 54 35 13 122 . . 223 . . 71 11 42 6 9 11 217 Critical Strikes 35 | . . . . 1 . . 10 . . . . 6 1 . . 17 Actively Blocked 4 | . . . . . . . . . . . . . . . . 4 Damage Taken 15653 | . 667 404 177 1645 . . 3411 . . 1247 192 969 192 224 188 6337 Core 3198 | . 95 69 33 173 . . 810 . . 350 36 162 . 23 24 1423 Absorbed by Shields 34 | . . . . . . . . . . . . 10 . . . 24 Redirected to Shielding 166 | . . . . . . . . . . . . . . . . 166 Ignored by Resistances 95 | . . . . . . . 6 . . . . 53 . . . 36 Regen/Repaired (Parts) 86 | . . . . . . . . . . 76 . . . . . 10 Core Remaining (%) 61 | 100 . 34 . . . 48 4 . . 65 . 82 100 . . . Volleys Fired 295 | . 57 30 6 74 . . 65 . . 18 . . . . . 45 Largest 2 | . 2 2 2 2 . . 2 . . 1 . . . . . 2 Hottest 165 | . 115 130 46 63 . . 165 . . 28 . . . . . 126 Shots Fired 511 | . 114 60 12 119 . . 127 . . 18 . . . . . 61 Gun 471 | . 114 60 12 117 . . 127 . . 18 . . . . . 23 Cannon 38 | . . . . . . . . . . . . . . . . 38 Launcher 2 | . . . . 2 . . . . . . . . . . . . Special . | . . . . . . . . . . . . . . . . . Kinetic 348 | . 30 42 12 101 . . 94 . . 18 . . . . . 51 Thermal 142 | . 84 18 . 3 . . 27 . . . . . . . . 10 Explosive . | . . . . . . . . . . . . . . . . . Electromagnetic 21 | . . . . 15 . . 6 . . . . . . . . . Robot Hit Streak 19 | . 7 8 8 12 . . 19 . . 3 . . . . . 16 Robot Miss Streak 4 | . 3 3 2 3 . . 2 . . 2 . . . . . 4 Penetration Max 2 | . . . . . . . 1 . . 1 . . . . . 2 Secondary Targets 6 | . 2 1 . 2 . . 1 . . . . . . . . . Max Gunslinging Chain 1 | . 1 1 . 1 . . 1 . . . . . . . . . Shots Hit Robots 386 | . 75 34 9 72 . . 96 . . 9 4 18 4 7 11 47 Core Hits 165 | . 30 15 2 28 . . 59 . . 8 2 5 . 2 1 13 Critical Kills 4 | . . 1 . . . . 2 . . . . . . . . 1 Critical Parts Destroyed 5 | . . 1 . 1 . . . . . . . . . . . 3 Critical Strikes 28 | . 4 2 . 1 . . 4 . . . . 3 . . . 14 Burn 7 | . 4 . . . . . 1 . . . . . . . . 2 Destroy 10 | . . 2 . 1 . . 3 . . . . . . . . 4 Blast 7 | . . . . . . . . . . . . . . . . 7 Sever 3 | . . . . . . . . . . . . 3 . . . . Impale 1 | . . . . . . . . . . . . . . . . 1 Melee Attacks 93 | . . . . . . . . . . 1 8 26 6 20 18 14 Kinetic 5 | . . . . . . . . . . . . . . . . 5 Impact . | . . . . . . . . . . . . . . . . . Slashing 35 | . . . . . . . . . . 1 8 22 4 . . . Piercing 42 | . . . . . . . . . . . . . . 19 14 9 Sneak Attacks 18 | . . . . . . . . . . . 1 5 2 2 7 1 Combat Hostiles . | . . . . . . . . . . . . . . . . . Follow-up Attacks 2 | . . . . . . . . . . . 1 1 . . . . Damage Inflicted 9288 | . 905 566 119 1266 . . 2073 . . 210 275 743 131 301 497 2202 Guns 5548 | . 905 566 119 1143 . . 1726 . . 203 . . . . . 886 Cannons 1084 | . . . . . . . . . . . . . . . . 1084 Explosions 363 | . . . . 102 . . 261 . . . . . . . . . Melee 2179 | . . . . . . . . . . . 275 743 131 301 497 232 Ramming 114 | . . . . 21 . . 86 . . 7 . . . . . . Kinetic 4847 | . 136 399 119 1053 . . 1191 . . 203 . . . . . 1746 Thermal 1948 | . 769 167 . 112 . . 641 . . . . . . . . 259 Explosive 110 | . . . . . . . 110 . . . . . . . . . Electromagnetic 125 | . . . . 80 . . 45 . . . . . . . . . Impact . | . . . . . . . . . . . . . . . . . Slashing 1149 | . . . . . . . . . . . 275 743 131 . . . Piercing 995 | . . . . . . . . . . . . . . 301 497 197 Highest Corruption 11 | . 2 2 . . . . 6 . . 1 5 5 . 6 7 11 Average Corruption 5 | . 2 2 . . . . 4 . . 1 5 5 . 3 6 9 Corruption Purged . | . . . . . . . . . . . . . . . . . Corruption Blocked . | . . . . . . . . . . . . . . . . . Effects 96 | . . 6 . . . . 13 . . . 1 12 . 7 6 51 Message Errors 20 | . . 2 . . . . 4 . . . 1 2 . 2 2 7 Matter Fused 28 | . . 2 . . . . 3 . . . . 4 . 3 3 13 Heat Flow Errors 10 | . . 1 . . . . 1 . . . . 1 . 2 . 5 Energy Discharges 8 | . . . . . . . 3 . . . . 1 . . . 4 Parts Rejected 1 | . . . . . . . . . . . . . . . . 1 Parts Fused 2 | . . . . . . . . . . . . . . . . 2 Data Loss (minor) 12 | . . . . . . . 2 . . . . 3 . . . 7 Data Loss (major) 4 | . . . . . . . . . . . . 1 . . . 3 Alerts 2 | . . 1 . . . . . . . . . . . . 1 . Misdirections 6 | . . . . . . . . . . . . . . . . 6 Weapon Failures 3 | . . . . . . . . . . . . . . . . 3 Overload Shots . | . . . . . . . . . . . . . . . . . Overflow Damage 556 | . . . . . . . 30 . . . 121 . 21 83 143 158 Projectiles 133 | . . . . . . . . . . . . . . . . 133 Explosions 30 | . . . . . . . 30 . . . . . . . . . Melee 393 | . . . . . . . . . . . 121 . 21 83 143 25 Knockbacks 3 | . . . . . . . . . . . . . . . . 3 Impact . | . . . . . . . . . . . . . . . . . Kinetic 3 | . . . . . . . . . . . . . . . . 3 Secondary . | . . . . . . . . . . . . . . . . . Self-Inflicted Damage 109 | . . . . 39 . . 67 . . 3 . . . . . . Shots 3 | . . . . 2 . . 1 . . . . . . . . . Rammed 30 | . . . . 9 . . 18 . . 3 . . . . . . Targets Rammed 34 | . . . . 11 . . 20 . . 3 . . . . . . Kicked . | . . . . . . . . . . . . . . . . . Crushed 4 | . . . . 2 . . 2 . . . . . . . . . Highest Temperature 383 | . 116 383 3 162 . . 211 . . . . 118 . 248 . 61 Average Temperature 67 | . 37 183 3 44 . . 68 . . . . 42 . 105 . 14 Received Heat Transfer 3020 | . 381 159 78 741 . . 819 . . 63 . 272 9 18 . 480 Effects 2 | . . 2 . . . . . . . . . . . . . . Shutdowns 1 | . . 1 . . . . . . . . . . . . . . Short Circuit 1 | . . 1 . . . . . . . . . . . . . . Siege Activations . | . . . . . . . . . . . . . . . . . Martial Activations . | . . . . . . . . . . . . . . . . . Shielding Activations . | . . . . . . . . . . . . . . . . . Robots Disrupted . | . . . . . . . . . . . . . . . . . Combat Hostiles . | . . . . . . . . . . . . . . . . . Robots Corrupted . | . . . . . . . . . . . . . . . . . Combat Hostiles . | . . . . . . . . . . . . . . . . . Parts Fried 1 | . . . . . . . 1 . . . . . . . . . Impact Corruptions . | . . . . . . . . . . . . . . . . . Robots Melted 2 | . 2 . . . . . . . . . . . . . . . Combat Hostiles 2 | . 2 . . . . . . . . . . . . . . . Parts Melted 6 | . 5 . . 1 . . . . . . . . . . . . Heat Transferred 4917 | . 2479 407 . 175 . . 1375 . . . . . . . . 481 Parts Sabotaged . | . . . . . . . . . . . . . . . . . Parts Stolen . | . . . . . . . . . . . . . . . . . Parts Stripped 28 | . . . . . . . . . . . . . . . . 28 Power Chain Reactions 3 | . . . . 2 . . 1 . . . . . . . . . Alert | -11 -10 -10 -9 -9 -9 -9 -6 -5 -5 -5 -4 -4 -3 -2 -2 -2 ------- Run | Yrd Mat Min Mat Sto Rec Scr Fac Fac Was Fac Fac Ext Res Res Qua Frg Maximum Alert Level 1 | . . . . . . . 1 . . . . . . . . . Low Security (%) 99 | 100 100 100 100 100 100 . 97 100 100 100 100 100 100 100 100 100 Level 1 . | . . . . . . . 2 . . . . . . . . . Level 2 . | . . . . . . . . . . . . . . . . . Level 3 . | . . . . . . . . . . . . . . . . . Level 4 . | . . . . . . . . . . . . . . . . . Level 5 . | . . . . . . . . . . . . . . . . . High Security . | . . . . . . . . . . . . . . . . . Max Security . | . . . . . . . . . . . . . . . . . Peak Influence 307 | . 63 116 124 188 53 . 307 149 34 165 130 148 54 88 128 79 Initial 149 | . . . 35 48 53 . . 149 34 . 67 58 50 . 45 66 Average 45 | . 19 37 53 118 11 . 33 129 10 84 77 50 11 5 52 26 Influence Increases 4636 | . 344 320 119 896 150 . 827 30 . 359 183 466 90 217 193 442 Destroy 0b10 Robot/C 2080 | . 240 240 80 540 . . 460 . . 80 40 180 . 20 . 200 Destroy 0b10 Robot/NC 65 | . 10 . 5 15 . . . . . . 5 5 . 5 10 10 Destroy Leader 430 | . 60 60 22 144 . . 90 . . 10 . 12 . . . 32 Allied During Kill 238 | . . 20 12 126 . . . . . . . 80 . . . . Trap Triggered on 0b10 10 | . . . . . . . 10 . . . . . . . . . Successful Hack 203 | . 19 . . 11 30 . 18 . . 12 18 20 28 . . 47 Select Force Hacks 120 | . . . . . 120 . . . . . . . . . . . Disable Machine 150 | . . . . 30 . . 45 . . . . . 15 15 45 . Destroy Structure 95 | . . . . 15 . . 24 . . 2 . 4 2 27 3 18 Partial Spotted 240 | . . . . . . . 15 . . 15 60 . 30 60 . 60 Lose Combat Pursuer 1005 | . 15 . . 15 . . 165 30 . 240 60 165 15 90 135 75 Influence Decreases 4582 | . 344 228 97 873 287 . 520 238 99 220 202 490 186 135 157 506 Entered New Map 699 | . . . 57 66 84 . . 158 65 . 72 62 46 . 37 52 Time Decay 2820 | . 324 208 40 543 203 . 240 80 34 150 110 187 122 135 120 324 Lost Part 600 | . 20 20 . 80 . . 200 . . 70 10 70 . . . 130 Lost Ally 463 | . . . . 184 . . 80 . . . 10 171 18 . . . Squads Dispatched 48 | . 1 . . 5 . . 10 . . 10 2 3 3 5 3 6 Investigation 22 | . . . . 3 . . 5 . . 4 2 3 1 1 . 3 Extermination 10 | . . . . . . . 2 . . 2 . . 1 3 1 1 Reinforcement 9 | . 1 . . 1 . . . . . 1 . . 1 1 2 2 Assault . | . . . . . . . . . . . . . . . . . Garrison 7 | . . . . 1 . . 3 . . 3 . . . . . . Intercept . | . . . . . . . . . . . . . . . . . Searches Triggered . | . . . . . . . . . . . . . . . . . Construction Impeded . | . . . . . . . . . . . . . . . . . Haulers Reinforced . | . . . . . . . . . . . . . . . . . Active Scanning Responses . | . . . . . . . . . . . . . . . . . Cargo Convoy Interrupts . | . . . . . . . . . . . . . . . . . Stealth | -11 -10 -10 -9 -9 -9 -9 -6 -5 -5 -5 -4 -4 -3 -2 -2 -2 --------- Run | Yrd Mat Min Mat Sto Rec Scr Fac Fac Was Fac Fac Ext Res Res Qua Frg Distress Signals 21 | . 2 . 1 3 . . 3 1 . 1 2 . . 3 . 5 Communications Jammed 292 | . . . . . . . 11 . . . 6 153 4 17 55 46 Distress Signals 238 | . . . . . . . 11 . . . 6 153 4 17 1 46 Times Spotted 360 | . 30 14 5 32 . . 51 2 6 25 26 25 14 22 28 80 Peak Tracking Total 13 | . 4 3 4 7 . . 11 4 6 8 12 11 5 12 13 13 Tactical Retreats 44 | . 1 . . 1 . . 5 2 . 6 4 4 4 6 6 5 ECM-based Alert Blocks 39 | . . . . . . . . . . . 6 . 7 10 10 6 Traps | -11 -10 -10 -9 -9 -9 -9 -6 -5 -5 -5 -4 -4 -3 -2 -2 -2 ------- Run | Yrd Mat Min Mat Sto Rec Scr Fac Fac Was Fac Fac Ext Res Res Qua Frg Traps Triggered 13 | . 1 . . 1 . . 1 1 . 1 2 3 . 1 . 2 Indirectly . | . . . . . . . . . . . . . . . . . Trap Hack Attempts 2 | . . . . . . . . . . . . 2 . . . . Triggered . | . . . . . . . . . . . . . . . . . Disarmed 1 | . . . . . . . . . . . . 1 . . . . Reprogrammed . | . . . . . . . . . . . . . . . . . Reused 1 | . . . . . . . 1 . . . . . . . . . Traps Extracted . | . . . . . . . . . . . . . . . . . Installed 2 | . . . . . . 1 1 . . . . . . . . . Triggered 1 | . . . . . . . 1 . . . . . . . . . Most Traps Carried 1 | . . . . . . 1 1 . . . . . . . . . Machines | -11 -10 -10 -9 -9 -9 -9 -6 -5 -5 -5 -4 -4 -3 -2 -2 -2 ---------- Run | Yrd Mat Min Mat Sto Rec Scr Fac Fac Was Fac Fac Ext Res Res Qua Frg Machines Disabled 11 | . . . . 2 . . 3 . . . . 1 1 1 3 . Max in Single Turn 1 | . . . . 1 . . 1 . . . . . 1 1 1 . Garrison Access 2 | . . . . 1 . . . . . . . . 1 . . . Machines Repaired . | . . . . . . . . . . . . . . . . . Machines Dismantled . | . . . . . . . . . . . . . . . . . Machines Sabotaged . | . . . . . . . . . . . . . . . . . Overloaded Fab Kills . | . . . . . . . . . . . . . . . . . Hacking | -11 -10 -10 -9 -9 -9 -9 -6 -5 -5 -5 -4 -4 -3 -2 -2 -2 --------- Run | Yrd Mat Min Mat Sto Rec Scr Fac Fac Was Fac Fac Ext Res Res Qua Frg Machines Accessed 73 | . 5 . 1 8 8 3 7 . . 8 4 7 7 3 2 10 Terminals 41 | . 5 . 1 7 4 . 1 . . 3 3 6 4 1 1 5 Fabricators 5 | . . . . . . . . . . . 1 . 1 1 . 2 Repair Stations 1 | . . . . . . . . . . 1 . . . . . . Recycling Units 17 | . . . . . 4 . 5 . . 3 . 1 1 . . 3 Scanalyzers 2 | . . . . . . . 1 . . 1 . . . . . . Garrison Access 4 | . . . . 1 . . . . . . . . 1 1 1 . Total Hacks 152 | . 18 . 2 23 10 11 10 . . 15 8 14 12 4 3 22 Successful 81 | . 13 . 1 14 7 11 5 . . 9 5 4 5 . 2 5 Failed 71 | . 5 . 1 9 3 . 5 . . 6 3 10 7 4 1 17 Catastrophic 20 | . . . . 1 1 . 1 . . 1 1 4 3 2 . 6 Database Lockouts . | . . . . . . . . . . . . . . . . . Manual 81 | . 15 . 2 14 4 . 7 . . 6 6 5 6 . . 16 Terminals 97 | . 18 . 2 21 6 . 2 . . 6 7 13 6 1 2 13 Fabricators 7 | . . . . . . . . . . . 1 . 2 1 . 3 Repair Stations 3 | . . . . . . . . . . 3 . . . . . . Recycling Units 25 | . . . . . 4 . 7 . . 4 . 1 3 . . 6 Scanalyzers 3 | . . . . . . . 1 . . 2 . . . . . . Garrison Access 6 | . . . . 2 . . . . . . . . 1 2 1 . Terminal Hacks 30 | . 3 . . 6 3 11 . . . 1 1 2 . . 2 1 Record 12 | . . . . . . 10 . . . . . . . . 2 . Robot Analysis 1 | . . . . 1 . . . . . . . . . . . . Prototype ID Bank 2 | . . . . 2 . . . . . . . . . . . . Open Door 3 | . . . . 1 . . . . . . . 2 . . . . Terminal Index 1 | . . . . 1 . . . . . . . . . . . . Recycling Unit Index 1 | . . . . . 1 . . . . . . . . . . . Garrison Index 1 | . . . . . 1 . . . . . . . . . . . Locate Traps 5 | . 2 . . 1 . . . . . . 1 . . . . 1 Recall Extermination 1 | . . . . . . . . . . 1 . . . . . . Hauler Manifests 1 | . 1 . . . . . . . . . . . . . . . Registered Prototypes 1 | . . . . . 1 . . . . . . . . . . . Proto ID Catalog 1 | . . . . . . 1 . . . . . . . . . . Fabricator Hacks 4 | . . . . . . . . . . . 1 . 2 . . 1 Network Status 1 | . . . . . . . . . . . . . 1 . . . Build 3 | . . . . . . . . . . . 1 . 1 . . 1 Repair Station Hacks 2 | . . . . . . . . . . 2 . . . . . . Scan Component 1 | . . . . . . . . . . 1 . . . . . . Repair 1 | . . . . . . . . . . 1 . . . . . . Recycling Unit Hacks . | . . . . . . . . . . . . . . . . . Scanalyzer 3 | . . . . . . . 1 . . 2 . . . . . . Retrieve Study 3 | . . . . . . . 1 . . 2 . . . . . . Garrison Access Hacks 2 | . . . . 1 . . . . . . . . 1 . . . Seal Access 2 | . . . . 1 . . . . . . . . 1 . . . Unauthorized Hacks 40 | . 10 . 1 7 4 . 4 . . 4 3 2 2 . . 3 Terminals 26 | . 10 . 1 7 . . . . . 1 3 1 1 . . 2 Assimilate 3 | . 2 . . . . . . . . . . . . . . 1 Botnet 12 | . 2 . 1 3 . . . . . 1 2 1 1 . . 1 Disrupt 1 | . . . . . . . . . . . 1 . . . . . Operators 1 | . 1 . . . . . . . . . . . . . . . Skim 9 | . 5 . . 4 . . . . . . . . . . . . Fabricators . | . . . . . . . . . . . . . . . . . Repair Stations . | . . . . . . . . . . . . . . . . . Recycling Units 14 | . . . . . 4 . 4 . . 3 . 1 1 . . 1 Tunnel 4 | . . . . . 4 . . . . . . . . . . . Fedlink 8 | . . . . . . . 2 . . 3 . 1 1 . . 1 Scrapoids 2 | . . . . . . . 2 . . . . . . . . . Scanalyzers . | . . . . . . . . . . . . . . . . . Garrison Access . | . . . . . . . . . . . . . . . . . Data Cores Recovered 1 | . . . . 1 . . . . . . . . . . . . Used . | . . . . . . . . . . . . . . . . . Hacking Detections 49 | . 2 . 1 8 3 . 3 . . 5 3 6 5 3 1 9 Full Trace Events 11 | . . . . 2 1 . 1 . . 1 2 2 . . . 2 Feedback Events . | . . . . . . . . . . . . . . . . . Feedback Blocked . | . . . . . . . . . . . . . . . . . Robot Schematics Acquired . | . . . . . . . . . . . . . . . . . Robots Built 2 | . . . . . . . . . . . 2 . . . . . Authchips . | . . . . . . . . . . . . . . . . . Time 76 | . . . . . . . . . . . 76 . . . . . Total Robot Build Rating 10 | . . . . . . . . . . . 10 . . . . . Part Schematics Acquired . | . . . . . . . . . . . . . . . . . Parts Built 4 | . . . . . . . . . . . . . 2 . . 2 Authchips . | . . . . . . . . . . . . . . . . . Time 115 | . . . . . . . . . . . . . 69 . . 46 Total Part Build Rating 36 | . . . . . . . . . . . . . 18 . . 18 Part Studies Acquired 3 | . . . . . . . 1 . . 2 . . . . . . Parts Repaired 1 | . . . . . . . . . . 1 . . . . . . Time 43 | . . . . . . . . . . 43 . . . . . . Parts Recycled . | . . . . . . . . . . . . . . . . . Recycled Matter . | . . . . . . . . . . . . . . . . . Retrieved Matter . | . . . . . . . . . . . . . . . . . Retrieved Components . | . . . . . . . . . . . . . . . . . Parts Scanalyzed . | . . . . . . . . . . . . . . . . . Part Schematics Acquired . | . . . . . . . . . . . . . . . . . Parts Damaged . | . . . . . . . . . . . . . . . . . Bothacking | -11 -10 -10 -9 -9 -9 -9 -6 -5 -5 -5 -4 -4 -3 -2 -2 -2 ------------ Run | Yrd Mat Min Mat Sto Rec Scr Fac Fac Was Fac Fac Ext Res Res Qua Frg Used RIF Installer . | . . . . . . . . . . . . . . . . . Robots Hacked 6 | . . . . . . . . . . . . . 1 1 4 . Non-combat 4 | . . . . . . . . . . . . . 1 1 2 . Combat . | . . . . . . . . . . . . . . . . . Robot Hacks Applied 5 | . . . . . . . . . . . . . 2 1 2 . no_distress 4 | . . . . . . . . . . . . . 1 1 2 . find_fabricator 1 | . . . . . . . . . . . . . 1 . . . Manual 2 | . . . . . . . . . . . . . . . 2 . Relay Couplers Released . | . . . . . . . . . . . . . . . . . Fabnet Peak Effective % . | . . . . . . . . . . . . . . . . . Robots Rewired 7 | . . . . . . . . . . . . 7 . . . . Allies Hacked . | . . . . . . . . . . . . . . . . . Hacks Repelled . | . . . . . . . . . . . . . . . . . Allies | -11 -10 -10 -9 -9 -9 -9 -6 -5 -5 -5 -4 -4 -3 -2 -2 -2 -------- Run | Yrd Mat Min Mat Sto Rec Scr Fac Fac Was Fac Fac Ext Res Res Qua Frg Total Allies 31 | . 1 3 . 10 . . 5 . . . 2 10 . . . . Largest Group 11 | . 1 4 3 11 . . 5 . . . 2 8 . . . . Highest-Rated Group 466 | . 10 50 41 104 . . 143 . . . 40 466 . . . . Highest-Rated Ally 159 | . 10 16 16 16 . . 31 . . . 20 159 . . . . Initial UFD Resources 77 | . . . . . . . 23 34 34 34 53 53 65 77 77 77 Total Orders 4 | . 2 . . . . . . . . . . . 2 . . . STAY 1 | . 1 . . . . . . . . . . . . . . . FOLLOW 1 | . 1 . . . . . . . . . . . . . . . EXPLORE 2 | . . . . . . . . . . . . . 2 . . . Ally Attacks 188 | . . 8 7 78 . . 36 . . . . 59 . . . . Total Damage 3380 | . . 73 99 683 . . 739 . . . . 1786 . . . . Kills 31 | . . 2 5 13 . . 4 . . . . 7 . . . . Allies Corrupted . | . . . . . . . . . . . . . . . . . Allies Melted . | . . . . . . . . . . . . . . . . . Intel | -11 -10 -10 -9 -9 -9 -9 -6 -5 -5 -5 -4 -4 -3 -2 -2 -2 ------- Run | Yrd Mat Min Mat Sto Rec Scr Fac Fac Was Fac Fac Ext Res Res Qua Frg Active Infowar (turns) 5228 | . 88 . . . . . 936 177 138 498 220 446 550 805 242 1128 Optics 5140 | . . . . . . . 936 177 138 498 220 446 550 805 242 1128 Sensors 2301 | . . . . . . . . . . 134 220 291 464 778 242 172 Terrain 1856 | . 88 . . . . . . . . 358 . . 158 805 242 205 Jamming 2109 | . . . . . . . 332 . . . 142 291 217 748 109 270 ECM 643 | . . . . . . . . . . . 37 . 100 381 36 89 Robot Analysis Total 1 | . . . . 1 . . . . . . . . . . . . Derelict Logs Recovered 1 | . . 1 . . . . . . . . . . . . . . Drone Launches 6 | . . . . . . . . . . . . . 6 . . . Drone Recoveries . | . . . . . . . . . . . . . . . . . Exploration | -11 -10 -10 -9 -9 -9 -9 -6 -5 -5 -5 -4 -4 -3 -2 -2 -2 ------------- Run | Yrd Mat Min Mat Sto Rec Scr Fac Fac Was Fac Fac Ext Res Res Qua Frg Turns Passed 11602 | 73 1440 694 85 1603 849 1660 949 177 138 498 220 446 550 805 242 1173 Spaces Moved 10584 | 46 802 558 50 843 522 1026 524 219 176 812 388 634 932 1236 530 1286 Core 376 | 9 . . . . . . 20 . . 233 . 46 . . . 68 Treads 3052 | 37 415 . . 662 522 1026 362 . . . . . . . . 28 Legs 510 | . . . . 98 . . . 2 . . . . . . . 410 Wheels 1078 | . 387 558 50 83 . . . . . . . . . . . . Hover . | . . . . . . . . . . . . . . . . . Flight 5568 | . . . . . . . 142 217 176 579 388 588 932 1236 530 780 Fastest Speed 28 | 50 90 95 95 95 160 155 29 32 77 30 28 28 34 33 33 32 Average Speed 83 | 138 132 102 95 155 160 159 121 73 77 41 28 41 35 33 33 61 Slowest Speed 400 | 160 160 115 95 190 160 163 240 120 77 77 30 400 37 33 33 260 Overloaded Moves . | . . . . . . . . . . . . . . . . . Propulsion Burnouts . | . . . . . . . . . . . . . . . . . Robots Hopped 43 | . . . . . . . 2 2 . 3 11 5 9 4 4 3 Potential Cave-ins . | . . . . . . . . . . . . . . . . . Cave-ins Triggered . | . . . . . . . . . . . . . . . . . Exploration Rate (%) 52 | 4 83 98 12 79 96 83 21 7 99 25 13 74 27 41 78 47 Regions Visited 16 Branch Regions 7 Pre-discovered Areas 5 | . . . . . 4 . 1 . . . . . . . . . Known Exits Taken 8 | . . 1 1 . . . . . . 1 1 1 1 1 1 . Unknown Exits Taken 6 | 1 1 . . 1 1 1 1 . . . . . . . . . Scrap Searched 6 | . . 1 . . . 5 . . . . . . . . . . Spaces Dug 18 | . . . . . . . . . . 1 . . 1 10 1 5 Terrain Destroyed 66 | . . . . 11 . . 36 . . 1 . . 1 10 1 6 Melee 18 | . . . . . . . . . . 1 . . 1 10 1 5 Projectile 1 | . . . . . . . . . . . . . . . . 1 AOE 47 | . . . . 11 . . 36 . . . . . . . . . Terrain Rammed . | . . . . . . . . . . . . . . . . . Walls Destroyed . | . . . . . . . . . . . . . . . . . Machines Disabled . | . . . . . . . . . . . . . . . . . Actions | -11 -10 -10 -9 -9 -9 -9 -6 -5 -5 -5 -4 -4 -3 -2 -2 -2 --------- Run | Yrd Mat Min Mat Sto Rec Scr Fac Fac Was Fac Fac Ext Res Res Qua Frg Total 12616 | 53 1072 629 78 1018 534 1052 695 233 177 949 475 779 1134 1602 574 1562 Wait 1149 | . 183 33 19 28 10 4 41 1 . 85 80 47 155 326 17 120 Move 10483 | 45 801 557 49 842 521 1025 519 215 175 805 365 623 913 1227 521 1280 Hop 43 | . . . . . . . 2 2 . 3 11 5 9 4 4 3 Pick Up 89 | 3 14 3 . 21 . 5 4 1 1 3 4 2 6 8 3 11 Fast Attach 135 | 5 4 1 1 9 . 4 19 7 1 14 2 7 20 4 1 36 Attach 54 | . 6 2 1 12 . . 9 . . 5 4 1 2 2 3 7 Detach 18 | . . . . . . . 2 1 . 6 . . 4 1 1 3 Swap 24 | . 1 2 . 4 3 2 1 . . . . . . 1 2 8 Drop 121 | . 6 1 2 17 . 11 12 5 . 6 2 3 19 9 4 24 Fire 295 | . 57 30 6 74 . . 65 . . 18 . . . . . 45 Melee 91 | . . . . . . . . . . 1 7 25 6 20 18 14 Ram 11 | . . . . . . . 8 . . 3 . . . . . . Kick . | . . . . . . . . . . . . . . . . . Crush 23 | . . . . 11 . . 12 . . . . . . . . . Escape Stasis 53 | . . . . . . . . . . . . 42 . . . 11 Rewire 23 | . . . . . . . . 1 . . . 22 . . . . Trap 4 | . . . . . . 1 1 . . . . 2 . . . . Miscellaneous . | . . . . . . . . . . . . . . . . . Route ------- -11/Scrapyard -10/Materials (discovered 4 exits: *Mat x3 / [*Min]) -10/Mines (discovered 2 exits: *Mat x2) -9/Materials (discovered 2 exits: Mat / *Sto) -9/Storage -9/Recycling (discovered 2 exits: [*Fac] / *Scr) -9/Scraptown (discovered 2 exits: *Fac x2) -6/Factory -5/Factory -5/Waste -5/Factory -4/Factory -4/Extension (discovered 2 exits: *Res / [*Cet]) -3/Research -2/Research (discovered 3 exits: *Acc / *Qua x2) -2/Quarantine (discovered 2 exits: *Sec / *Frg) -2/Protoforge History --------- Turn | Location | Event 7 | -11/Scrapyard | Discovered new exit (range 16) 74 | -11/Scrapyard | Entered Materials 306 | -10/Materials | Build established: Mutant 436 | -10/Materials | Discovered new exit (range 10) 486 | -10/Materials | Discovered new exit (range 10) 538 | -10/Materials | Discovered new exit (range 16) 674 | -10/Materials | Derelicts attacked the area 1262 | -10/Materials | Discovered new exit (range 13) 1514 | -10/Materials | Entered Mines 1514 | -10/Mines | Accompanied by 1 ally 1515 | -10/Mines | Identified exit to Materials 1526 | -10/Mines | Build established: Scavenger-Mutant 1539 | -10/Mines | Core integrity fell below 50% 1553 | -10/Mines | Met a Derelict bent on vengeance 1763 | -10/Mines | Assisted by bots powering up and referring to "LRC-V3" 2044 | -10/Mines | Learned location of 1 exit from Materials 2208 | -10/Mines | Entered Materials 2208 | -9/Materials | Accompanied by 3 allies 2208 | -9/Materials | Evolved 2 slots: Propulsion x1, Utility x1 2209 | -9/Materials | Identified exit to Storage 2210 | -9/Materials | Identified exit to Materials 2282 | -9/Materials | Build established: Mutant 2293 | -9/Materials | Entered Storage 2293 | -9/Storage | Accompanied by 3 allies 2361 | -9/Storage | Garrison activated, responded to threat 2372 | -9/Storage | Assisted by bots powering up and referring to "LRC-V3" 2417 | -9/Storage | Lost 4 parts (2n2w) 2440 | -9/Storage | Lost 7 allies 2650 | -9/Storage | Used back door to open Recycling access 2650 | -9/Storage | Discovered new exit (range 5) 2664 | -9/Storage | Build established: Scavenger-Mutant 3490 | -9/Storage | Core integrity fell below 50% 3896 | -9/Storage | Entered Recycling 3911 | -9/Recycling | Scanned before Scraplab entrance 4469 | -9/Recycling | Discovered new exit (range 5) 4729 | -9/Recycling | Entered Scraplab 4741 | -9/Recycling | Discovered new exit (range 3) 4745 | -9/Recycling | Entered Scraptown 4816 | -9/Scraptown | Heard Great Nut preacher, LISTEN AND RECITE! 5015 | -9/Scraptown | Discovered new exit (range 11) 5479 | -9/Scraptown | Visited Comm Corps 5533 | -9/Scraptown | Visited Symbiants 5568 | -9/Scraptown | Visited Spacefarers 5642 | -9/Scraptown | Visited UFD Registry 5642 | -9/Scraptown | Registered with UFD as "Technocoil" 5675 | -9/Scraptown | Visited Scrapoid Pod Storage 5684 | -9/Scraptown | Found Scrapoid Pod 5713 | -9/Scraptown | Visited Junk Repository 5775 | -9/Scraptown | Visited Junk Repository 5960 | -9/Scraptown | Visited Science Guys 5986 | -9/Scraptown | Warned about trapping Scraptown 6024 | -9/Scraptown | Visited Supply Room 6028 | -9/Scraptown | Build established: Mutant 6095 | -9/Scraptown | Visited Chapter 10 6132 | -9/Scraptown | Visited Research Penetration Think Tank 6170 | -9/Scraptown | Visited DA-N13 Charitable Foundation 6177 | -9/Scraptown | Found DCF Scrap (30 items) 6311 | -9/Scraptown | Met Optimus 6311 | -9/Scraptown | Accepted into 0bPrime 6397 | -9/Scraptown | Discovered new exit (range 5) 6405 | -9/Scraptown | Entered Factory 6405 | -6/Factory | Evolved 6 slots: Power x1, Propulsion x1, Utility x4 6720 | -6/Factory | Build established: Hacker-Mutant 6858 | -6/Factory | Loaded intel: 8 recycling unit locations 7013 | -6/Factory | Garrison activated, responded to threat 7172 | -6/Factory | Lost 6 parts (2p1n2u1w) 7231 | -6/Factory | Core integrity fell below 50% 7243 | -6/Factory | Lost 6 parts (1p2n2u1w) 7285 | -6/Factory | Core integrity fell below 20% 7299 | -6/Factory | Lost 4 parts (1p1n1u1w) 7301 | -6/Factory | Learned location of Protoforge (-2) 7303 | -6/Factory | Scrapoids reinforcements arrived? 7352 | -6/Factory | Discovered new exit (range 8) 7354 | -6/Factory | Entered another Factory area 7354 | -5/Factory | Evolved 2 slots: Propulsion x2 7371 | -5/Factory | Lost 3 parts (1n1u1w) 7531 | -5/Factory | Sucked down chute 7531 | -5/Factory | Entered Waste 7545 | -5/Waste | Spotted C-40 Crusher 7559 | -5/Waste | Spotted C-40 Crusher 7559 | -5/Waste | Spotted C-40 Crusher 7578 | -5/Waste | Spotted C-40 Crusher 7581 | -5/Waste | Spotted C-40 Crusher 7624 | -5/Waste | Spotted C-40 Crusher 7651 | -5/Waste | Found Prototype Processor 7651 | -5/Waste | Identified Exp. Signal Interpreter 7662 | -5/Waste | Discovered new exit (range 10) 7668 | -5/Waste | Identified exit to Factory 7669 | -5/Waste | Entered Factory 7723 | -5/Factory | Loaded intel: 8 recycling unit locations 7871 | -5/Factory | Garrison activated, responded to threat 7907 | -5/Factory | Lost 6 parts (5n1u) 8129 | -5/Factory | Repaired Broken Adv. Surge Thruster 8134 | -5/Factory | Discovered new exit (range 16) 8139 | -5/Factory | Identified exit to Factory 8167 | -5/Factory | Entered another Factory area 8167 | -4/Factory | Evolved 2 slots: Utility x2 8294 | -4/Factory | Fabricated R-10 Processor? 8382 | -4/Factory | Discovered new exit (range 13) 8386 | -4/Factory | Identified exit to Extension 8387 | -4/Factory | Entered Extension 8487 | -4/Extension | Rescued a captive Derelict 8487 | -4/Extension | Rescued a captive Derelict 8598 | -4/Extension | Lost 3 parts (2n1u) 8601 | -4/Extension | Rescued A7 8613 | -4/Extension | Spotted B-86 Titan 8644 | -4/Extension | Spotted B-86 Titan 8654 | -4/Extension | Extracted ID and sensor layout for unrecognized location from A7's data core 8678 | -4/Extension | Loaded intel: 2 recycling unit locations 8823 | -4/Extension | Discovered new exit (range 22) 8824 | -4/Extension | Discovered new exit (range 20) 8832 | -4/Extension | Identified exit to Research 8833 | -4/Extension | Entered Research 8833 | -3/Research | Evolved 2 slots: Utility x2 8866 | -3/Research | Loaded intel: 5 recycling unit locations 8873 | -3/Research | Spotted B-86 Titan 8990 | -3/Research | Fabricated Enh. Hardcell Cannon? 9068 | -3/Research | Spotted B-86 Titan 9121 | -3/Research | Lost 3 allies 9182 | -3/Research | Build established: Infiltrator-Ninja 9291 | -3/Research | Discovered new exit (range 8) 9335 | -3/Research | Found Gamma Bomb Array 9383 | -3/Research | Identified exit to Research 9383 | -3/Research | Entered another Research area 9383 | -2/Research | Evolved 2 slots: Propulsion x2 9547 | -2/Research | Found Prototype Reactor 9559 | -2/Research | Found Fusion Bomb Launcher 9561 | -2/Research | Identified Vortex Chain Reactor 9758 | -2/Research | Discovered new exit (range 21) 9984 | -2/Research | Found Prototype Device 9984 | -2/Research | Identified Exp. EM Shield 10179 | -2/Research | Discovered new exit (range 6) 10182 | -2/Research | Discovered new exit (range 19) 10182 | -2/Research | Identified exit to Access 10187 | -2/Research | Identified exit to Quarantine 10188 | -2/Research | Entered Quarantine 10202 | -2/Quarantine | Found Alien Artifact 10226 | -2/Quarantine | Identified Phase Redirector 10232 | -2/Quarantine | Found Alien Artifact 10232 | -2/Quarantine | Identified Terrabomb 10232 | -2/Quarantine | Used Terrabomb 10254 | -2/Quarantine | Found Alien Impact Weapon 10254 | -2/Quarantine | Identified Core Stripper 10405 | -2/Quarantine | Spotted Fortress 10427 | -2/Quarantine | Discovered new exit (range 6) 10427 | -2/Quarantine | Discovered new exit (range 7) 10428 | -2/Quarantine | Identified exit to Section 7 10429 | -2/Quarantine | Identified exit to Protoforge 10430 | -2/Quarantine | Entered Protoforge 10474 | -2/Protoforge | Spotted B-90 Cyclops 10521 | -2/Protoforge | Spotted Hotshot 10521 | -2/Protoforge | Spotted Hotshot 10553 | -2/Protoforge | Spotted Hotshot 10598 | -2/Protoforge | Spotted Hotshot 10600 | -2/Protoforge | Spotted Hotshot 10600 | -2/Protoforge | Spotted Hotshot 10609 | -2/Protoforge | Superfortress began startup sequence 10620 | -2/Protoforge | Spotted AP7-3 10620 | -2/Protoforge | Spotted AP7-3 10636 | -2/Protoforge | Destroyed AP7-3 10646 | -2/Protoforge | Found Prototype Processor 10646 | -2/Protoforge | Identified Exp. Target Analyzer 10649 | -2/Protoforge | System corruption reached 10% 10649 | -2/Protoforge | Destroyed AP7-3 10679 | -2/Protoforge | Lost 5 parts (5u) 10684 | -2/Protoforge | Spotted EXE-6 10689 | -2/Protoforge | Spotted EXE-6 10706 | -2/Protoforge | Found Prototype Device 10706 | -2/Protoforge | Identified Exp. Trap Extractor 10755 | -2/Protoforge | Spotted Decapitator 10755 | -2/Protoforge | Spotted Decapitator 10764 | -2/Protoforge | UFD initiated attack on Protoforge (Readiness: Adequate) 10764 | -2/Protoforge | Loaded intel: 3 recycling unit locations 10783 | -2/Protoforge | Lost 4 parts (1p2n1w) 10788 | -2/Protoforge | Found Prototype Processor 10788 | -2/Protoforge | Identified Exp. Armor Integrity Analyzer 10790 | -2/Protoforge | Found Prototype Ballistic Gun 10790 | -2/Protoforge | Identified Cep. XC Strikerail 10795 | -2/Protoforge | Found Prototype Device 10795 | -2/Protoforge | Identified Exp. Kinecellerator 10800 | -2/Protoforge | Optimus greeted in Protoforge 10844 | -2/Protoforge | Lost 3 allies 10921 | -2/Protoforge | Lost 7 allies 10958 | -2/Protoforge | Lost 8 parts (1p2n3u2w) 11058 | -2/Protoforge | Fabricated Enh. Hardcell Cannon (x2) 11082 | -2/Protoforge | Build established: Scavenger-Mutant 11097 | -2/Protoforge | Spotted Striker 11099 | -2/Protoforge | Spotted Striker 11104 | -2/Protoforge | Destroyed Striker 11110 | -2/Protoforge | Spotted Executioner 11122 | -2/Protoforge | Destroyed Executioner 11158 | -2/Protoforge | Lost 6 allies 11308 | -2/Protoforge | P-80 Master assimilated allied 9U-11Q(j) 11309 | -2/Protoforge | P-80 Master assimilated allied 02F48-D 11310 | -2/Protoforge | P-80 Master assimilated allied 5E-O8P(j) 11346 | -2/Protoforge | Found Scrap Suit 11352 | -2/Protoforge | P-80 Master assimilated allied 0Y-X66(E) 11382 | -2/Protoforge | Lost 5 allies 11425 | -2/Protoforge | Found Prototype Device 11425 | -2/Protoforge | Identified Cep. Antimissile System 11467 | -2/Protoforge | Spotted Striker 11468 | -2/Protoforge | Spotted Executioner 11496 | -2/Protoforge | Spotted Executioner 11498 | -2/Protoforge | Spotted Striker 11500 | -2/Protoforge | Spotted Executioner 11501 | -2/Protoforge | Spotted Executioner 11558 | -2/Protoforge | Core integrity fell below 50% 11558 | -2/Protoforge | Released all parts (16) 11576 | -2/Protoforge | Lost 18 allies 11578 | -2/Protoforge | Core integrity fell below 20% 11586 | -2/Protoforge | Lost 5 parts (1p3n1u) 11603 | -2/Protoforge | Destroyed by Y-72 Warden with Railgun Last Messages --------------- 11580_ HV Slug penetrates Wall. 11580_ Knocked back. 11591_ Triggered Stasis Trap. 11591_ A bubble of rippling energy engulfs the area. 11591_ Field strength at 94. 11591_ Field strength at 88. 11592_ Field strength at 82. 11593_ Field strength at 76. 11594_ Field strength at 70. 11595_ Field strength at 64. 11596_ Field strength at 58. 11597_ Field strength at 52. 11598_ Field strength at 46. 11599_ Field strength at 28. 11600_ Field strength at 22. 11601_ Field strength at 16. 11602_ Stasis field depleted. 11603_ Penetrated by Slug. [Achievement: Tester] Map ----- +----------------------------------------------------+ | ?????????????????????????????????????????????????? | | ?????????????????????????????????????????????????? | | ?????????????????????????????????????????????????? | | ?????????????????????????????????????????????????? | | ?????????????????????????????????????????????????? | | ?????????????????????????????????????????????????? | | ?????????????????????????????????????????????????? | | ?????????????????????????????????????????????????? | | ?????????????????????????????????????????????????? | | ?????????????????????????????????????????????????? | | ?????????????????????????????????????????????????? | | ?????????????????????????????????????????????????? | | ?????????????????????????????????????????????????? | | ?????????????????????????????????????????????????? | | ?????????????????????????????????????????????????? | | ?????????????????????????????????????????????????? | | ??????????????????????????????? #????????????????? | | ??????????????????????????????? #????????????????? | | ??????????????????????????????? #????????????????? | | ?????????????????????????????? #????????????????? | | ?????????????????????????????? #????????????????? | | ?????????????????????????????? #????????????????? | | ???????????################### #????????????????? | | ?????????? ##???????????????? | | ?????????? Y#???????????????? | | ?????????? @ Y#???????????????? | | ?????????????????+######## #####???????????????? | | ?????????????????????????# #???????????????????? | | ?????????????????????????# ^ #???????????????????? | | ?????????????????????????# #???????????????????? | | ?????????????????????????# ^#???????????????????? | | ?????????????????????????# #???????????????????? | | ?????????????????????????# #????????????????? ? | | ?????????????????????????# ################# ? | | ?????????????????????????# ?? | | ?????????????????????????# ? | | ?????????????????????????# ? | | ?????????????????????????######## #??????? | | ????????????????????????????????# #??????? | | ????????????????????????????????# #??????? | | ????????????????????????????????# #??????? | | ????????????????????????????????# #??????? | | ????????????????????????????????## ##??????? | | ????????????????????????########## #####???? | | ????????????????????????########## ##"###### | | ????????????????????????##???""""" " """""# | | #####?########?########?##???""" """" # | | #####?########?########?##?? "" "" # | | ???#####????#####????#####?? T" "" " | | ???#####????#####????#####? # | +----------------------------------------------------+ Best States ------------- Heat Dissipation 87 Coolant Potential 80 Energy Generation 55 Energy Capacity 700 Matter Stores 300 Matter Capacity 300 Sight Range 23 Robot Scan Range 16 Terrain Scan Range 24 Terrain Scan Density 210 ECM Strength 2 Jamming Range 16 Additional Mass Support 9 Base Temperature (-) 200 Corruption Block 20 Armor Coverage 625 Resistance: KI 20 Resistance: TH 10 Resistance: EM 15 Propulsion Shielding 15 Utility Shielding 33 Phase Shifting 15 Evasion (%) 90 Target Analysis 13 Armor Integrity Analysis 50 Recoil Reduction 4 Kinecelleration 66 Salvage Targeting 4 Offensive Hacking 20 Item Schematics ----------------- None Robot Schematics ------------------ None Fabricated ------------ R-10 Processor | x2 | -4/Factory | Preloaded Enh. Hardcell Cannon | x2 | -3/Research | Preloaded Enh. Hardcell Cannon | x2 | -2/Protoforge | Preloaded Repaired ---------- Adv. Surge Thruster | 15% | -5/Factory | Broken Studied --------- Lrn. Missile Launcher | -6/Factory | Hacked Nuclear Pulse Thruster | -5/Factory | Hacked Field Propulsion Drive | -5/Factory | Hacked Alien Tech Used ----------------- Phase Redirector Terrabomb Core Stripper Achievements -------------- Infodabbler Nope Ooh, Shiny! Ponder That! Sunderer Super-what Now? Tester Total Silence Watch This! We Are One Challenges ------------ None Game ------ Seed MetamassWeaponBoomstick Manual? 0 Play Time 02:47:28 Cumulative 97.9 hours Start 2026.07.06 @ 16:42:01 End 2026.07.06 @ 19:43:09 Sessions 1 Manual Loads 0 Difficulty Rogue Special Mode None Game No. 47 Rogue 47 Adventurer 0 Explorer 0 Win Type - Total 2 Types 2/0/0/0/0/0/0/0/0/0 Lore% 49 Gallery% 51 Achievement% 49 Wizard Run 0 Options --------- Layout 1 ASCII 0 Keyboard 0 Movement Numpad Keybinds 0 Fullscreen 1 Font 24/Smallcaps Map View 50x35 Zoom Use 0% Tactical HUD 1 Map Filters NONE Filters NONE Steam 1 RUN: fd765c51-5467-46a7-b21c-b5a1ff190839